[Event "*** Titled Tuesday Blitz"]
[Site "Chess.com"]
[Date "2021.03.02"]
[Round "10"]
[White "Tekushka"]
[Black "Cuajada_Zero"]
[Result "1-0"]
[WhiteElo "2436"]
[BlackElo "2281"]
[TimeControl "180+1"]
[EndTime "11:59:24 PST"]
[Termination "Tekushka won on time"]

1. e4 {[%clk 0:03:00.9]} 1... c6 {[%clk 0:02:58.5]} 2. d4 {[%clk 0:03:00.1]}
2... d5 {[%clk 0:02:53]} 3. Nc3 {[%clk 0:03:00.6]} 3... dxe4 {[%clk 0:02:51.9]}
4. Nxe4 {[%clk 0:03:01]} 4... Nf6 {[%clk 0:02:51.5]} 5. Nxf6+ {[%clk 0:03:00.6]}
5... exf6 {[%clk 0:02:52.4]} 6. c3 {[%clk 0:03:00.4]} 6... Bd6 {[%clk
0:02:52.9]} 7. Bd3 {[%clk 0:03:00.5]} 7... O-O {[%clk 0:02:52.9]} 8. Qc2 {[%clk
0:03:01]} 8... Re8+ {[%clk 0:02:53.6]} 9. Ne2 {[%clk 0:03:01.1]} 9... Kh8 {[%clk
0:02:54.3]} 10. Be3 {[%clk 0:02:47.1]} 10... Nd7 {[%clk 0:02:54]} 11. O-O-O
{[%clk 0:02:46]} 11... Nf8 {[%clk 0:02:54.3]} 12. Kb1 {[%clk 0:02:42.6]} 12...
Be6 {[%clk 0:02:52.9]} 13. c4 {[%clk 0:02:42]} 13... a6 {[%clk 0:02:50.4]} 14.
Be4 {[%clk 0:02:16.5]} 14... Rc8 {[%clk 0:02:29.5]} 15. h3 {[%clk 0:02:00.8]}
15... Qe7 {[%clk 0:02:16.5]} 16. Bf3 {[%clk 0:01:49.5]} 16... Qd7 {[%clk
0:02:13]} 17. Ka1 {[%clk 0:01:47.7]} 17... Bf5 {[%clk 0:02:12.3]} 18. Qb3 {[%clk
0:01:44.5]} 18... b5 {[%clk 0:02:01]} 19. c5 {[%clk 0:01:43]} 19... Bb8 {[%clk
0:01:57.7]} 20. Nc3 {[%clk 0:01:41.4]} 20... Be6 {[%clk 0:01:11.1]} 21. d5
{[%clk 0:01:40.4]} 21... cxd5 {[%clk 0:01:12]} 22. Bxd5 {[%clk 0:01:27.7]} 22...
Ba7 {[%clk 0:00:59.5]} 23. c6 {[%clk 0:01:17.8]} 23... Qc7 {[%clk 0:00:56.8]}
24. Bxe6 {[%clk 0:01:06.5]} 24... fxe6 {[%clk 0:00:34.4]} 25. Bxa7 {[%clk
0:00:28.5]} 25... Qxa7 {[%clk 0:00:35.3]} 26. Rd6 {[%clk 0:00:25.7]} 26... Qc5
{[%clk 0:00:26.5]} 27. Ne4 {[%clk 0:00:20.5]} 27... Qe5 {[%clk 0:00:24.7]} 28.
Qd3 {[%clk 0:00:20.5]} 28... Rc7 {[%clk 0:00:16.5]} 29. Rd1 {[%clk 0:00:19.6]}
29... Rec8 {[%clk 0:00:13.5]} 30. Rd8 {[%clk 0:00:17.3]} 30... Kg8 {[%clk
0:00:12.6]} 31. f4 {[%clk 0:00:08.3]} 31... Qf5 {[%clk 0:00:07.2]} 32. g4 {[%clk
0:00:07.1]} 32... Qxf4 {[%clk 0:00:07.3]} 33. Nc5 {[%clk 0:00:07.3]} 33... Rxc6
{[%clk 0:00:06.5]} 34. Nxe6 {[%clk 0:00:05.3]} 34... h5 {[%clk 0:00:02.7]} 35.
Nxf4 {[%clk 0:00:04.3]} 35... Rc1+ {[%clk 0:00:03.1]} 36. Qb1 {[%clk 0:00:03.8]}
36... Rxb1+ {[%clk 0:00:02.8]} 37. Kxb1 {[%clk 0:00:03.6]} 37... Rc4 {[%clk
0:00:03.2]} 38. R1d4 {[%clk 0:00:03.6]} 38... Kf7 {[%clk 0:00:04.1]} 39. Nxh5
{[%clk 0:00:03.7]} 39... Rc5 {[%clk 0:00:03.9]} 40. R4d5 {[%clk 0:00:04]} 40...
Rc6 {[%clk 0:00:04.1]} 41. R5d6 {[%clk 0:00:04.1]} 41... Rc7 {[%clk 0:00:04.4]}
42. Ra8 {[%clk 0:00:03.2]} 42... b4 {[%clk 0:00:04.6]} 43. a3 {[%clk 0:00:03.8]}
43... Re7 {[%clk 0:00:05.2]} 44. axb4 {[%clk 0:00:03.5]} 44... Re1+ {[%clk
0:00:06.1]} 45. Ka2 {[%clk 0:00:03.9]} 45... Re4 {[%clk 0:00:07]} 46. b5 {[%clk
0:00:03.7]} 46... Ke7 {[%clk 0:00:06.9]} 47. Rb6 {[%clk 0:00:04.2]} 47... Nd7
{[%clk 0:00:07.2]} 48. Rb7 {[%clk 0:00:03.9]} 48... Ke6 {[%clk 0:00:06.7]} 49.
bxa6 {[%clk 0:00:04]} 49... Nc5 {[%clk 0:00:06.3]} 50. Re8+ {[%clk 0:00:04.1]}
50... Kd5 {[%clk 0:00:06.6]} 51. Rxe4 {[%clk 0:00:04.7]} 51... Kxe4 {[%clk
0:00:07.2]} 52. a7 {[%clk 0:00:04.8]} 52... Nxb7 {[%clk 0:00:07.6]} 53. a8=Q
{[%clk 0:00:05.1]} 1-0

[Event "*** Titled Tuesday Blitz"]
[Site "Chess.com"]
[Date "2021.03.02"]
[Round "10"]
[White "politeplayer"]
[Black "akanga001"]
[Result "1-0"]
[WhiteElo "2223"]
[BlackElo "1969"]
[TimeControl "180+1"]
[EndTime "11:59:32 PST"]
[Termination "politeplayer won on time"]

1. e4 {[%clk 0:03:00.9]} 1... c6 {[%clk 0:02:55.9]} 2. d4 {[%clk 0:02:59.8]}
2... d5 {[%clk 0:02:56.8]} 3. Nc3 {[%clk 0:03:00.2]} 3... dxe4 {[%clk
0:02:56.5]} 4. Nxe4 {[%clk 0:03:00.6]} 4... Nf6 {[%clk 0:02:57.4]} 5. Nxf6+
{[%clk 0:03:00.2]} 5... gxf6 {[%clk 0:02:58.3]} 6. c3 {[%clk 0:02:57.5]} 6...
Bf5 {[%clk 0:02:57]} 7. Ne2 {[%clk 0:02:55]} 7... Qd5 {[%clk 0:02:54.1]} 8. h4
{[%clk 0:02:48.6]} 8... h5 {[%clk 0:02:49.4]} 9. Qb3 {[%clk 0:02:39]} 9... Qxb3
{[%clk 0:02:43.8]} 10. axb3 {[%clk 0:02:38.2]} 10... Bd3 {[%clk 0:02:42.3]} 11.
Bf4 {[%clk 0:02:32.3]} 11... Nd7 {[%clk 0:02:35.2]} 12. Kd2 {[%clk 0:02:26.6]}
12... Bg6 {[%clk 0:02:24.3]} 13. Rh3 {[%clk 0:02:17.8]} 13... e5 {[%clk
0:02:23.4]} 14. Re3 {[%clk 0:02:13.9]} 14... Bh6 {[%clk 0:02:21.5]} 15. Bxh6
{[%clk 0:02:12.9]} 15... Rxh6 {[%clk 0:02:22.4]} 16. f4 {[%clk 0:02:01.6]} 16...
e4 {[%clk 0:02:15.8]} 17. f5 {[%clk 0:01:54.6]} 17... Bxf5 {[%clk 0:02:14.4]}
18. Ng3 {[%clk 0:01:55]} 18... Bg6 {[%clk 0:02:04.1]} 19. Nxe4 {[%clk
0:01:54.6]} 19... Bxe4 {[%clk 0:01:54.2]} 20. Rxe4+ {[%clk 0:01:53.9]} 20... Kd8
{[%clk 0:01:52.3]} 21. Bc4 {[%clk 0:01:51.5]} 21... Rg6 {[%clk 0:01:49.8]} 22.
Bxf7 {[%clk 0:01:42.9]} 22... Rxg2+ {[%clk 0:01:48.6]} 23. Kd3 {[%clk
0:01:39.1]} 23... Rg3+ {[%clk 0:01:43.5]} 24. Kc4 {[%clk 0:01:38.4]} 24... Nb6+
{[%clk 0:01:38.4]} 25. Kc5 {[%clk 0:01:38.6]} 25... Kd7 {[%clk 0:01:30.9]} 26.
Rae1 {[%clk 0:01:20.2]} 26... Nc8 {[%clk 0:01:24]} 27. Bxh5 {[%clk 0:01:03.7]}
27... b6+ {[%clk 0:01:19.4]} 28. Kb4 {[%clk 0:01:01.1]} 28... a5+ {[%clk
0:01:16.2]} 29. Ka3 {[%clk 0:01:00.9]} 29... Ra7 {[%clk 0:01:01.6]} 30. Bg4+
{[%clk 0:00:55.8]} 30... Kc7 {[%clk 0:00:58]} 31. Bxc8 {[%clk 0:00:32]} 31...
Kxc8 {[%clk 0:00:55.5]} 32. Re8+ {[%clk 0:00:30.7]} 32... Kb7 {[%clk 0:00:54.6]}
33. R1e7+ {[%clk 0:00:28.3]} 33... Ka6 {[%clk 0:00:54]} 34. Rxa7+ {[%clk
0:00:27.2]} 34... Kxa7 {[%clk 0:00:54.6]} 35. Re6 {[%clk 0:00:23.7]} 35... Rh3
{[%clk 0:00:45.5]} 36. Rxc6 {[%clk 0:00:22.8]} 36... Rxh4 {[%clk 0:00:44]} 37.
Rxf6 {[%clk 0:00:22.4]} 37... Kb7 {[%clk 0:00:44]} 38. b4 {[%clk 0:00:21.3]}
38... axb4+ {[%clk 0:00:42.4]} 39. Kxb4 {[%clk 0:00:21.2]} 39... Rh2 {[%clk
0:00:40.3]} 40. b3 {[%clk 0:00:20.8]} 40... Rh4 {[%clk 0:00:37.9]} 41. Kc4
{[%clk 0:00:19.8]} 41... Rh3 {[%clk 0:00:33.6]} 42. Re6 {[%clk 0:00:18.5]} 42...
Kc7 {[%clk 0:00:28.4]} 43. b4 {[%clk 0:00:17]} 43... b5+ {[%clk 0:00:21.8]} 44.
Kb3 {[%clk 0:00:14.8]} 44... Kb7 {[%clk 0:00:18.3]} 45. Re5 {[%clk 0:00:13]}
45... Kc6 {[%clk 0:00:17.3]} 46. Rc5+ {[%clk 0:00:12.5]} 46... Kb6 {[%clk
0:00:16.9]} 47. d5 {[%clk 0:00:12.1]} 47... Rd3 {[%clk 0:00:15]} 48. Rc6+ {[%clk
0:00:11]} 48... Kb7 {[%clk 0:00:14]} 49. Rc5 {[%clk 0:00:10.5]} 49... Kb6 {[%clk
0:00:13.3]} 50. Kc2 {[%clk 0:00:10.4]} 50... Rh3 {[%clk 0:00:11.1]} 51. Kd2
{[%clk 0:00:10.5]} 51... Rg3 {[%clk 0:00:09.5]} 52. d6 {[%clk 0:00:09.6]} 52...
Rg6 {[%clk 0:00:07.9]} 53. Rd5 {[%clk 0:00:09.7]} 1-0

[Event "*** Titled Tuesday Blitz"]
[Site "Chess.com"]
[Date "2021.03.02"]
[Round "10"]
[White "Rap_woyska"]
[Black "krzyzan94"]
[Result "0-1"]
[WhiteElo "2581"]
[BlackElo "2716"]
[TimeControl "180+1"]
[EndTime "11:59:39 PST"]
[Termination "krzyzan94 won by resignation"]

1. c4 {[%clk 0:03:00.9]} 1... e5 {[%clk 0:02:41.6]} 2. Nc3 {[%clk 0:03:00.6]}
2... Nf6 {[%clk 0:02:36.9]} 3. Nf3 {[%clk 0:03:00.8]} 3... Nc6 {[%clk
0:02:36.5]} 4. e3 {[%clk 0:03:00.5]} 4... a6 {[%clk 0:02:30]} 5. d4 {[%clk
0:02:59.7]} 5... exd4 {[%clk 0:02:28.8]} 6. exd4 {[%clk 0:03:00.6]} 6... d5
{[%clk 0:02:29.4]} 7. Bg5 {[%clk 0:02:59.6]} 7... Bb4 {[%clk 0:02:24.9]} 8. Be2
{[%clk 0:02:31.3]} 8... O-O {[%clk 0:02:01.7]} 9. O-O {[%clk 0:02:30.9]} 9...
dxc4 {[%clk 0:01:55.1]} 10. Bxc4 {[%clk 0:02:05.6]} 10... Be7 {[%clk 0:01:44.6]}
11. h3 {[%clk 0:02:01.2]} 11... h6 {[%clk 0:01:44.5]} 12. Be3 {[%clk 0:01:57.2]}
12... b5 {[%clk 0:01:41.4]} 13. Bb3 {[%clk 0:01:55.5]} 13... Bb7 {[%clk
0:01:40.1]} 14. Ne5 {[%clk 0:01:43]} 14... Na5 {[%clk 0:01:35.1]} 15. Bc2 {[%clk
0:01:42]} 15... Re8 {[%clk 0:01:17.8]} 16. Qc1 {[%clk 0:01:13.3]} 16... Bf8
{[%clk 0:01:09.6]} 17. Rd1 {[%clk 0:01:11.7]} 17... Nd5 {[%clk 0:01:01.3]} 18.
Qd2 {[%clk 0:00:59.9]} 18... Nxe3 {[%clk 0:00:56.2]} 19. fxe3 {[%clk 0:00:56.1]}
19... Qg5 {[%clk 0:00:49.8]} 20. Qf2 {[%clk 0:00:51.2]} 20... f6 {[%clk
0:00:41.4]} 21. h4 {[%clk 0:00:49.9]} 21... Qxg2+ {[%clk 0:00:32.5]} 22. Qxg2
{[%clk 0:00:49.8]} 22... Bxg2 {[%clk 0:00:33.4]} 23. Kxg2 {[%clk 0:00:41.7]}
23... fxe5 {[%clk 0:00:33.8]} 24. Be4 {[%clk 0:00:27.8]} 24... Rad8 {[%clk
0:00:32.9]} 25. dxe5 {[%clk 0:00:22.5]} 25... Rxd1 {[%clk 0:00:31.4]} 26. Rxd1
{[%clk 0:00:23.4]} 26... Rxe5 {[%clk 0:00:31.5]} 27. Kf3 {[%clk 0:00:21.4]}
27... Bd6 {[%clk 0:00:29]} 28. b3 {[%clk 0:00:17.9]} 28... g5 {[%clk 0:00:23.4]}
29. hxg5 {[%clk 0:00:15]} 29... hxg5 {[%clk 0:00:24.3]} 30. Bd5+ {[%clk
0:00:13.5]} 30... Kg7 {[%clk 0:00:23.9]} 31. e4 {[%clk 0:00:05.7]} 31... Re8
{[%clk 0:00:20.2]} 32. Ne2 {[%clk 0:00:04.7]} 32... Be5 {[%clk 0:00:17.1]} 33.
Rc1 {[%clk 0:00:05]} 33... Rf8+ {[%clk 0:00:16.6]} 34. Kg4 {[%clk 0:00:04.6]}
34... Rf2 {[%clk 0:00:16.2]} 35. Rc2 {[%clk 0:00:04.7]} 35... c6 {[%clk
0:00:15.4]} 36. Bxc6 {[%clk 0:00:02.5]} 36... Nxc6 {[%clk 0:00:15.4]} 37. Rxc6
{[%clk 0:00:03.1]} 37... Rxe2 {[%clk 0:00:16]} 38. Rxa6 {[%clk 0:00:03.4]} 38...
Rg2+ {[%clk 0:00:12.1]} 39. Kf5 {[%clk 0:00:03.9]} 39... Bc3 {[%clk 0:00:12.6]}
40. Ra7+ {[%clk 0:00:04.6]} 40... Kf8 {[%clk 0:00:11.9]} 41. a4 {[%clk
0:00:05.1]} 41... bxa4 {[%clk 0:00:09.5]} 42. bxa4 {[%clk 0:00:06]} 42... g4
{[%clk 0:00:09.7]} 43. e5 {[%clk 0:00:06]} 43... g3 {[%clk 0:00:09.8]} 44. Ra8+
{[%clk 0:00:06.7]} 44... Kg7 {[%clk 0:00:09.8]} 45. Ra7+ {[%clk 0:00:07.6]}
45... Kh6 {[%clk 0:00:09.6]} 46. Ra6+ {[%clk 0:00:08.1]} 46... Kh5 {[%clk
0:00:09.8]} 47. Ra8 {[%clk 0:00:08.5]} 47... Rf2+ {[%clk 0:00:10.3]} 48. Ke4
{[%clk 0:00:09]} 48... g2 {[%clk 0:00:09.9]} 49. Rh8+ {[%clk 0:00:08.8]} 49...
Kg6 {[%clk 0:00:08.4]} 50. Rg8+ {[%clk 0:00:09.7]} 50... Kf7 {[%clk 0:00:08.7]}
51. Rg4 {[%clk 0:00:10.1]} 51... Ba5 {[%clk 0:00:06.8]} 52. Kd5 {[%clk 0:00:09]}
52... Bb6 {[%clk 0:00:06.5]} 53. e6+ {[%clk 0:00:08.9]} 53... Ke7 {[%clk
0:00:04.5]} 54. a5 {[%clk 0:00:09.8]} 54... Ba7 {[%clk 0:00:04.3]} 55. Rg7+
{[%clk 0:00:09.7]} 55... Ke8 {[%clk 0:00:03.9]} 56. Rg8+ {[%clk 0:00:09.7]}
56... Ke7 {[%clk 0:00:03.1]} 57. Rg7+ {[%clk 0:00:10.6]} 57... Kf6 {[%clk
0:00:03.5]} 58. Rg3 {[%clk 0:00:10.4]} 58... Rd2+ {[%clk 0:00:03.2]} 59. Kc6
{[%clk 0:00:10.9]} 59... g1=Q {[%clk 0:00:04.1]} 60. Rxg1 {[%clk 0:00:11.3]}
60... Bxg1 {[%clk 0:00:05]} 61. a6 {[%clk 0:00:11.6]} 61... Kxe6 {[%clk
0:00:05.4]} 0-1

[Event "*** Titled Tuesday Blitz"]
[Site "Chess.com"]
[Date "2021.03.02"]
[Round "10"]
[White "Deepweb2020"]
[Black "kubal123"]
[Result "1-0"]
[WhiteElo "2410"]
[BlackElo "2230"]
[TimeControl "180+1"]
[EndTime "11:59:40 PST"]
[Termination "Deepweb2020 won by resignation"]

1. d4 {[%clk 0:03:00.9]} 1... g6 {[%clk 0:03:00.9]} 2. c4 {[%clk 0:03:01.8]}
2... Bg7 {[%clk 0:03:01.8]} 3. Nf3 {[%clk 0:02:59.7]} 3... Nf6 {[%clk
0:03:01.6]} 4. g3 {[%clk 0:02:59.1]} 4... c6 {[%clk 0:03:01]} 5. Bg2 {[%clk
0:03:00]} 5... d5 {[%clk 0:03:01.1]} 6. cxd5 {[%clk 0:02:59.3]} 6... cxd5 {[%clk
0:03:02]} 7. Nc3 {[%clk 0:02:53.9]} 7... O-O {[%clk 0:02:57.7]} 8. O-O {[%clk
0:02:50.3]} 8... Ne4 {[%clk 0:02:57.5]} 9. Ne5 {[%clk 0:02:38.1]} 9... Nxc3
{[%clk 0:02:30.1]} 10. bxc3 {[%clk 0:02:38]} 10... Nc6 {[%clk 0:02:28.5]} 11.
Nxc6 {[%clk 0:02:38.1]} 11... bxc6 {[%clk 0:02:29.4]} 12. Qa4 {[%clk 0:02:37.8]}
12... Qb6 {[%clk 0:02:29.3]} 13. Ba3 {[%clk 0:02:35.3]} 13... Qa6 {[%clk
0:02:28.9]} 14. Qxa6 {[%clk 0:02:26.9]} 14... Bxa6 {[%clk 0:02:29.8]} 15. Rfe1
{[%clk 0:02:21.4]} 15... Rfe8 {[%clk 0:02:27.4]} 16. e4 {[%clk 0:02:20.4]} 16...
e6 {[%clk 0:02:27.8]} 17. Bf1 {[%clk 0:02:06.6]} 17... Bxf1 {[%clk 0:02:25.6]}
18. Kxf1 {[%clk 0:02:07.5]} 18... Rab8 {[%clk 0:02:23.7]} 19. Rab1 {[%clk
0:02:05.9]} 19... Bf8 {[%clk 0:01:48.8]} 20. Bxf8 {[%clk 0:01:58.5]} 20... Kxf8
{[%clk 0:01:49.7]} 21. f3 {[%clk 0:01:58]} 21... Ke7 {[%clk 0:01:40.9]} 22. Ke2
{[%clk 0:01:56.4]} 22... Kd7 {[%clk 0:01:40.4]} 23. Kd3 {[%clk 0:01:56.4]} 23...
Kc7 {[%clk 0:01:36.4]} 24. Rb3 {[%clk 0:01:52.3]} 24... Rb6 {[%clk 0:01:31.3]}
25. Reb1 {[%clk 0:01:38.6]} 25... Reb8 {[%clk 0:01:30.2]} 26. e5 {[%clk
0:01:34.2]} 26... Rb5 {[%clk 0:01:14.8]} 27. h4 {[%clk 0:01:29.1]} 27... a5
{[%clk 0:01:08.3]} 28. Kc2 {[%clk 0:01:20]} 28... a4 {[%clk 0:01:02.8]} 29. Rb4
{[%clk 0:01:18.7]} 29... Rxb4 {[%clk 0:00:57.6]} 30. cxb4 {[%clk 0:01:17.9]}
30... Kb6 {[%clk 0:00:53.1]} 31. Kc3 {[%clk 0:01:09.9]} 31... h5 {[%clk
0:00:43.4]} 32. g4 {[%clk 0:01:08.3]} 32... Rh8 {[%clk 0:00:35.2]} 33. Rh1
{[%clk 0:01:03.9]} 33... Kb5 {[%clk 0:00:35.2]} 34. a3 {[%clk 0:01:01.2]} 34...
Kb6 {[%clk 0:00:26.6]} 35. Kd3 {[%clk 0:01:00.5]} 35... Kb5 {[%clk 0:00:26.9]}
36. Ke3 {[%clk 0:00:42.8]} 36... Kc4 {[%clk 0:00:24.9]} 37. Rc1+ {[%clk
0:00:39]} 37... Kb5 {[%clk 0:00:24.1]} 38. Rh1 {[%clk 0:00:11]} 38... Kc4 {[%clk
0:00:23.1]} 39. Rc1+ {[%clk 0:00:05.9]} 39... Kb5 {[%clk 0:00:23.2]} 40. g5
{[%clk 0:00:04.8]} 40... Ra8 {[%clk 0:00:22.1]} 41. Kd3 {[%clk 0:00:04.9]} 41...
Ra7 {[%clk 0:00:20.7]} 42. Rc5+ {[%clk 0:00:05]} 42... Kb6 {[%clk 0:00:20.8]}
43. Kc3 {[%clk 0:00:05.3]} 43... Ra8 {[%clk 0:00:20.5]} 44. b5 {[%clk
0:00:05.1]} 44... cxb5 {[%clk 0:00:20.1]} 45. Kb4 {[%clk 0:00:05.4]} 45... Ra5
{[%clk 0:00:15.7]} 46. Rc6+ {[%clk 0:00:02.2]} 46... Kxc6 {[%clk 0:00:12.4]} 47.
Kxa5 {[%clk 0:00:03.1]} 47... Kc7 {[%clk 0:00:06.1]} 48. Kxb5 {[%clk 0:00:03.4]}
48... Kb7 {[%clk 0:00:07]} 49. Kxa4 {[%clk 0:00:03.8]} 49... Ka6 {[%clk
0:00:07.9]} 50. Kb4 {[%clk 0:00:04.3]} 50... Kb6 {[%clk 0:00:08.4]} 51. a4
{[%clk 0:00:04.9]} 51... Ka6 {[%clk 0:00:06.2]} 52. a5 {[%clk 0:00:05.2]} 52...
Ka7 {[%clk 0:00:05.6]} 53. Kb5 {[%clk 0:00:06.1]} 53... Kb7 {[%clk 0:00:06.5]}
54. a6+ {[%clk 0:00:06.3]} 54... Ka7 {[%clk 0:00:07.4]} 55. Ka5 {[%clk
0:00:06.5]} 55... Ka8 {[%clk 0:00:06.7]} 56. Kb6 {[%clk 0:00:06.8]} 56... Kb8
{[%clk 0:00:07.2]} 57. a7+ {[%clk 0:00:07.7]} 57... Ka8 {[%clk 0:00:07.4]} 58.
f4 {[%clk 0:00:07.9]} 58... f5 {[%clk 0:00:07.1]} 59. exf6 {[%clk 0:00:07.1]}
59... e5 {[%clk 0:00:08]} 60. f7 {[%clk 0:00:06.6]} 1-0

[Event "*** Titled Tuesday Blitz"]
[Site "Chess.com"]
[Date "2021.03.02"]
[Round "10"]
[White "Moon_stone123"]
[Black "Szparu"]
[Result "0-1"]
[WhiteElo "2513"]
[BlackElo "2655"]
[TimeControl "180+1"]
[EndTime "11:59:44 PST"]
[Termination "Szparu won by checkmate"]

1. Nf3 {[%clk 0:03:00.9]} 1... Nf6 {[%clk 0:02:57.1]} 2. g3 {[%clk 0:03:01.1]}
2... g6 {[%clk 0:02:54.4]} 3. Bg2 {[%clk 0:03:01.1]} 3... Bg7 {[%clk 0:02:54.1]}
4. O-O {[%clk 0:03:01.7]} 4... O-O {[%clk 0:02:54.2]} 5. c4 {[%clk 0:03:02.3]}
5... d6 {[%clk 0:02:52.6]} 6. Nc3 {[%clk 0:03:01.4]} 6... e5 {[%clk 0:02:51.2]}
7. d3 {[%clk 0:03:02]} 7... Re8 {[%clk 0:02:49.7]} 8. Bg5 {[%clk 0:03:01.9]}
8... h6 {[%clk 0:02:38.8]} 9. Bxf6 {[%clk 0:03:02.1]} 9... Bxf6 {[%clk
0:02:38.6]} 10. Rb1 {[%clk 0:03:03]} 10... c6 {[%clk 0:02:35.6]} 11. Nd2 {[%clk
0:02:51.8]} 11... Be6 {[%clk 0:02:31.3]} 12. Nde4 {[%clk 0:02:15.5]} 12... Bg7
{[%clk 0:02:28.5]} 13. c5 {[%clk 0:02:07.6]} 13... d5 {[%clk 0:02:21.9]} 14. Nd6
{[%clk 0:02:07.7]} 14... Re7 {[%clk 0:02:22.5]} 15. e4 {[%clk 0:02:07.1]} 15...
d4 {[%clk 0:02:18.3]} 16. Ne2 {[%clk 0:02:06.8]} 16... Bxa2 {[%clk 0:02:15.1]}
17. Ra1 {[%clk 0:02:06.9]} 17... Be6 {[%clk 0:02:14.8]} 18. b4 {[%clk
0:02:07.2]} 18... Na6 {[%clk 0:02:10.9]} 19. Nxb7 {[%clk 0:02:03.8]} 19... Rxb7
{[%clk 0:02:09]} 20. Rxa6 {[%clk 0:02:03.6]} 20... Bd7 {[%clk 0:01:51.5]} 21.
Qd2 {[%clk 0:01:58]} 21... Rab8 {[%clk 0:01:49.8]} 22. Rfa1 {[%clk 0:01:57.8]}
22... Rxb4 {[%clk 0:01:35.5]} 23. Rxa7 {[%clk 0:01:57.3]} 23... Rb1+ {[%clk
0:01:36.1]} 24. Nc1 {[%clk 0:01:45.9]} 24... R8b2 {[%clk 0:01:26.5]} 25. Qe1
{[%clk 0:01:35]} 25... h5 {[%clk 0:01:13.2]} 26. Rxb1 {[%clk 0:01:27.7]} 26...
Rxb1 {[%clk 0:01:12.5]} 27. Qd2 {[%clk 0:01:27.7]} 27... Be6 {[%clk 0:01:04.8]}
28. Qc2 {[%clk 0:01:25]} 28... Qb8 {[%clk 0:01:04.4]} 29. Ra6 {[%clk 0:01:06.9]}
29... Bh6 {[%clk 0:01:00.3]} 30. Rb6 {[%clk 0:01:06.8]} 30... Rxb6 {[%clk
0:00:48]} 31. cxb6 {[%clk 0:01:07.2]} 31... Qxb6 {[%clk 0:00:48.9]} 32. Ne2
{[%clk 0:01:05.2]} 32... Qb3 {[%clk 0:00:41.4]} 33. Qxb3 {[%clk 0:01:00.4]}
33... Bxb3 {[%clk 0:00:41.2]} 34. f4 {[%clk 0:01:00.9]} 34... Bc2 {[%clk
0:00:39.6]} 35. fxe5 {[%clk 0:00:59.6]} 35... Bxd3 {[%clk 0:00:39.8]} 36. Kf2
{[%clk 0:00:59.5]} 36... Be3+ {[%clk 0:00:39.5]} 37. Ke1 {[%clk 0:00:59.8]}
37... c5 {[%clk 0:00:38.1]} 38. Nf4 {[%clk 0:00:57.1]} 38... Bxf4 {[%clk
0:00:25.3]} 39. gxf4 {[%clk 0:00:57.1]} 39... c4 {[%clk 0:00:25.8]} 40. Kd2
{[%clk 0:00:57]} 40... Kf8 {[%clk 0:00:23.9]} 41. h4 {[%clk 0:00:50.6]} 41...
Ke7 {[%clk 0:00:23.3]} 42. Bf3 {[%clk 0:00:48.1]} 42... Kd7 {[%clk 0:00:19.3]}
43. Be2 {[%clk 0:00:26.5]} 43... Bxe2 {[%clk 0:00:18.3]} 44. Kxe2 {[%clk
0:00:27.4]} 44... Ke6 {[%clk 0:00:11.4]} 45. Kd2 {[%clk 0:00:27.5]} 45... Ke7
{[%clk 0:00:11.2]} 46. Ke2 {[%clk 0:00:27.6]} 46... Kd7 {[%clk 0:00:11.7]} 47.
Kd2 {[%clk 0:00:27.9]} 47... Kc6 {[%clk 0:00:11.7]} 48. Kc2 {[%clk 0:00:27.3]}
48... Kc5 {[%clk 0:00:12.2]} 49. Kd2 {[%clk 0:00:26]} 49... Kc6 {[%clk
0:00:06.7]} 50. Kc2 {[%clk 0:00:26]} 50... Kc5 {[%clk 0:00:03.5]} 51. Kd2 {[%clk
0:00:25]} 51... Kb4 {[%clk 0:00:03.9]} 52. Kc2 {[%clk 0:00:16.9]} 52... d3+
{[%clk 0:00:03.8]} 53. Kd2 {[%clk 0:00:17.2]} 53... Kb3 {[%clk 0:00:04.4]} 54.
f5 {[%clk 0:00:17.4]} 54... c3+ {[%clk 0:00:03.8]} 55. Kxd3 {[%clk 0:00:17.8]}
55... c2 {[%clk 0:00:04.3]} 56. e6 {[%clk 0:00:18.1]} 56... c1=Q {[%clk
0:00:04.1]} 57. exf7 {[%clk 0:00:18.2]} 57... Qc4+ {[%clk 0:00:04.7]} 58. Ke3
{[%clk 0:00:18.2]} 58... Qxf7 {[%clk 0:00:05.6]} 59. Kf4 {[%clk 0:00:18.2]}
59... Qf6 {[%clk 0:00:05.4]} 60. Ke3 {[%clk 0:00:16.3]} 60... gxf5 {[%clk
0:00:05.6]} 61. e5 {[%clk 0:00:16.6]} 61... Qxe5+ {[%clk 0:00:05.9]} 62. Kf3
{[%clk 0:00:17.5]} 62... Qe4+ {[%clk 0:00:06.5]} 63. Kg3 {[%clk 0:00:17.8]}
63... Qg4+ {[%clk 0:00:06.6]} 64. Kf2 {[%clk 0:00:18.7]} 64... Qxh4+ {[%clk
0:00:06.5]} 65. Kf3 {[%clk 0:00:19.6]} 65... Qg4+ {[%clk 0:00:06.8]} 66. Ke3
{[%clk 0:00:19.7]} 66... Qe4+ {[%clk 0:00:06.7]} 67. Kf2 {[%clk 0:00:20.6]}
67... f4 {[%clk 0:00:05.1]} 68. Kg1 {[%clk 0:00:20.7]} 68... Qe2 {[%clk
0:00:04.1]} 69. Kh1 {[%clk 0:00:20.6]} 69... f3 {[%clk 0:00:04.5]} 70. Kg1
{[%clk 0:00:21.5]} 70... Qg2# {[%clk 0:00:05.2]} 0-1